fUST/lending_fUST_20250628
["ID","MTS","AMOUNT","RATE_DAILY","PERIOD"]
[368217928,1751063451900,-673.33,0.00020821,2]
[368217930,1751063451909,-460.0,0.00020821,2]
[368217932,1751063451918,-3325.53,0.00020821,2]
[368217934,1751063451927,-2036.27,0.00020821,2]
[368217936,1751063451937,-3039.98,0.00020821,2]
[368217938,1751063451947,-460.0,0.00020821,2]
[368217940,1751063451957,-460.0,0.00020821,2]
[368217942,1751063451967,-746.56,0.00020821,2]
[368217944,1751063451977,-3571.78,0.00020821,2]
[368217946,1751063451987,-711.12,0.00020821,2]
[368217948,1751063451996,-460.0,0.00020821,2]
[368217950,1751063452005,-542.69,0.00020821,2]
[368217952,1751063452014,-225.877884,0.00020821,2]
[368217954,1751063452024,-460.0,0.00020821,2]
[368217956,1751063452034,-746.6,0.00020821,2]
[368217958,1751063452043,-1211.5,0.00020821,2]
[368217960,1751063452053,-225.877884,0.00020821,2]
[368217962,1751063452063,-460.0,0.00020821,2]
[368217964,1751063452072,-460.0,0.00020821,2]
[368217966,1751063452081,-1983.87,0.00020821,2]
[368217968,1751063452091,-460.0,0.00020821,2]
[368217970,1751063452101,-2057.65,0.00020821,2]
[368217972,1751063452110,-592.7,0.00020821,2]
[368217974,1751063452120,-2270.27,0.00020821,2]
[368217976,1751063452129,-460.0,0.00020821,2]
[368217978,1751063452139,-460.0,0.00020821,2]
[368217980,1751063452148,-984.99,0.00020821,2]
[368217982,1751063452158,-1354.55,0.00020821,2]
[368217984,1751063452167,-725.03,0.00020821,2]
[368217986,1751063452176,-859.5,0.00020821,2]
[368217988,1751063452185,-1500.41,0.00020821,2]
[368217990,1751063452194,-736.55,0.00020821,2]
[368217992,1751063452203,-735.38,0.00020821,2]
[368217994,1751063452212,-4367.09,0.00020821,2]
[368217996,1751063452222,-2800.66,0.00020821,2]
[368217998,1751063452231,-510.36,0.00020821,2]
[368218000,1751063452240,-557.48,0.00020821,2]
[368218002,1751063452249,-826.51,0.00020821,2]
[368218003,1751063452260,-679.09,0.00020821,2]
[368218005,1751063452269,-4896.92,0.00020821,2]
[368218007,1751063452279,-844.85,0.00020821,2]
[368218009,1751063452288,-3300.26,0.00020821,2]
[368218011,1751063452297,-1118.35,0.00020821,2]
[368218013,1751063452306,-1870.57,0.00020821,2]
[368218015,1751063452316,-473.34096706,0.00020821,2]
[368218018,1751063452325,-1873.1,0.00020821,2]
[368218019,1751063452335,-274.29290109,0.00020821,2]
[368218022,1751063452344,-460.0,0.00020821,2]
[368218023,1751063452353,-460.0,0.00020821,2]
[368218025,1751063452362,-460.0,0.00020821,2]
[368218027,1751063452372,-460.0,0.00020821,2]
[368218029,1751063452381,-680.86,0.00020821,2]
[368218031,1751063452390,-4363.55,0.00020821,2]
[368218033,1751063452400,-1345.05,0.00020821,2]
[368218035,1751063452410,-3792.71,0.00020821,2]
[368218037,1751063452419,-629.7,0.00020821,2]
[368218039,1751063452428,-767.94,0.00020821,2]
[368218041,1751063452437,-151.0,0.00020865,2]
[368218043,1751063452447,-6095.93334336,0.00020866,4]
[368218045,1751063452457,-741.01909549,0.00020927,2]
[368218047,1751063452467,-500.42188873,0.00021047,2]
[368218048,1751063452476,-460.0,0.00021095,2]
[368218049,1751063452485,-460.0,0.00021095,2]
[368218050,1751063452495,-212.36546775,0.00021095,2]
[368218051,1751063452504,-294.09410533,0.00021095,2]
[368218052,1751063452513,-607.35,0.00021095,2]
[368218053,1751063452523,-460.0,0.00021095,2]
[368218054,1751063452535,-999.05,0.00021095,2]
[368218055,1751063452545,-460.0,0.00021095,2]
[368218056,1751063452555,-460.0,0.00021095,2]
[368218057,1751063452564,-151.0,0.00021095,2]
[368218058,1751063452574,-151.0,0.00021095,2]
[368218059,1751063452583,-266.869812,0.00021095,2]
[368218060,1751063452592,-460.0,0.00021095,2]
[368218061,1751063452601,-151.0,0.00021095,2]
[368218062,1751063452610,-173.956447,0.00021095,2]
[368218063,1751063452619,-173.956447,0.00021095,2]
[368218064,1751063452629,-460.0,0.00021095,2]
[368218065,1751063452639,-167.89,0.00021095,2]
[368218066,1751063452648,-151.0,0.00021095,2]
[368218067,1751063452659,-900.26,0.00021095,2]
[368218068,1751063452668,-179.419642,0.00021095,2]
[368218069,1751063452678,-179.419642,0.00021095,2]
[368218070,1751063452688,-466.79,0.00021095,2]
[368218071,1751063452698,-206.173257,0.00021095,2]
[368218073,1751063452707,-206.173257,0.00021095,2]
[368218075,1751063452717,-540.41,0.00021095,2]
[368218076,1751063452727,-460.0,0.00021095,2]
[368218077,1751063452737,-151.0,0.00021095,2]
[368218078,1751063452748,-460.0,0.00021095,2]
[368218079,1751063452761,-538.692,0.00021095,2]
[368218080,1751063452771,-460.0,0.00021095,2]
[368218081,1751063452780,-871.69,0.00021095,2]
[368218082,1751063452789,-503.7,0.00021095,2]
[368218084,1751063452799,-714.05,0.00021095,2]
[368218086,1751063452809,-868.19,0.00021095,2]
[368218088,1751063452818,-1111.27,0.00021095,2]
[368218089,1751063452827,-460.0,0.00021095,2]
[368218090,1751063452836,-653.02,0.00021095,2]
[368218091,1751063452845,-828.56,0.00021095,2]
[368218092,1751063452856,-627.83,0.00021095,2]
[368218093,1751063452865,-460.0,0.00021095,2]
[368218094,1751063452874,-1734.59,0.00021095,2]
[368218095,1751063452884,-674.57,0.00021095,2]
[368218096,1751063452893,-673.33,0.00021095,2]
[368218097,1751063452902,-3325.53,0.00021095,2]
[368218098,1751063452911,-2036.27,0.00021095,2]
[368218099,1751063452920,-3039.98,0.00021095,2]
[368218100,1751063452930,-151.0,0.00021095,2]
[368218101,1751063452939,-460.0,0.00021095,2]
[368218102,1751063452949,-746.56,0.00021095,2]
[368218103,1751063452958,-3571.78,0.00021095,2]
[368218104,1751063452967,-711.12,0.00021095,2]
[368218105,1751063452976,-460.0,0.00021095,2]
[368218107,1751063452985,-542.69,0.00021095,2]
[368218109,1751063452995,-460.0,0.00021095,2]
[368218111,1751063453004,-746.6,0.00021095,2]
[368218113,1751063453013,-151.0,0.00021095,2]
[368218114,1751063453022,-1211.5,0.00021095,2]
[368218116,1751063453031,-151.0,0.00021095,2]
[368218118,1751063453041,-460.0,0.00021095,2]
[368218120,1751063453050,-1983.87,0.00021095,2]
[368218121,1751063453059,-2057.65,0.00021095,2]
[368218123,1751063453069,-592.7,0.00021095,2]
[368218125,1751063453078,-212.222409,0.00021095,2]
[368218127,1751063453087,-2270.27,0.00021095,2]
[368218128,1751063453096,-212.222409,0.00021095,2]
[368218129,1751063453106,-460.0,0.00021095,2]
[368218130,1751063453116,-984.99,0.00021095,2]
[368218131,1751063453125,-1354.55,0.00021095,2]
[368218132,1751063453134,-725.03,0.00021095,2]
[368218133,1751063453143,-151.0,0.00021095,2]
[368218134,1751063453153,-151.0,0.00021095,2]
[368218135,1751063453162,-151.0,0.00021095,2]
[368218136,1751063453172,-859.5,0.00021095,2]
[368218137,1751063453181,-151.0,0.00021095,2]
[368218138,1751063453191,-1500.41,0.00021095,2]
[368218139,1751063453200,-736.55,0.00021095,2]
[368218140,1751063453210,-735.38,0.00021095,2]
[368218141,1751063453221,-4367.09,0.00021095,2]
[368218142,1751063453230,-171.715867,0.00021095,2]
[368218143,1751063453239,-171.715867,0.00021095,2]
[368218144,1751063453249,-2800.66,0.00021095,2]
[368218145,1751063453258,-510.36,0.00021095,2]
[368218146,1751063453267,-557.48,0.00021095,2]
[368218147,1751063453276,-826.51,0.00021095,2]
[368218149,1751063453286,-679.09,0.00021095,2]
[368218151,1751063453298,-4896.92,0.00021095,2]
[368218153,1751063453307,-844.85,0.00021095,2]
[368218155,1751063453317,-151.0,0.00021095,2]
[368218156,1751063453326,-3300.26,0.00021095,2]
[368218157,1751063453335,-1118.35,0.00021095,2]
[368218158,1751063453344,-1870.57,0.00021095,2]
[368218159,1751063453355,-392.968075,0.00021095,2]
[368218160,1751063453364,-392.968075,0.00021095,2]
[368218162,1751063453375,-1873.1,0.00021095,2]
[368218164,1751063453384,-435.54592919,0.00021095,2]
[368218166,1751063453394,-460.0,0.00021095,2]
[368218167,1751063453403,-420.62554033,0.00021095,2]
[368218168,1751063453412,-680.86,0.00021095,2]
[368218169,1751063453422,-4363.55,0.00021095,2]
[368218170,1751063453431,-1345.05,0.00021095,2]
[368218171,1751063453440,-3792.71,0.00021095,2]
[368218172,1751063453449,-629.7,0.00021095,2]
[368218173,1751063453458,-767.94,0.00021095,2]
[368218174,1751063453468,-6095.93334336,0.00021107,4]
[368218175,1751063453478,-151.0,0.00021107,2]
[368218176,1751063453487,-151.0,0.00021107,2]
[368218177,1751063453496,-438.381091,0.00021107,2]
[368218178,1751063453506,-438.381091,0.00021107,2]
[368218179,1751063453515,-571.0556217,0.00021123,2]
[368218180,1751063453524,-153.0,0.00021123,2]
[368218181,1751063453536,-153.0,0.00021123,2]
[368218182,1751063453545,-153.0,0.00021123,2]
[368218183,1751063453555,-153.0,0.00021123,2]
[368218184,1751063453564,-354.9576342,0.00021123,2]
[368218185,1751063453575,-153.0,0.00021123,2]
[368218186,1751063453585,-218.0,0.0002125,2]
[368218187,1751063453594,-151.0,0.00021342,2]
[368218188,1751063453603,-151.0,0.00021342,2]
[368218189,1751063453613,-500.0,0.00021342,2]
[368218190,1751063453622,-151.0,0.00021342,2]
[368218191,1751063453631,-151.0,0.00021342,2]
[368218192,1751063453640,-151.0,0.00021342,2]
[368218193,1751063453649,-151.0,0.00021342,2]
[368218194,1751063453659,-151.0,0.00021342,2]
[368218195,1751063453668,-199.10625364,0.00021342,2]
[368218196,1751063453677,-151.0,0.00021342,2]
[368218197,1751063453687,-151.0,0.00021342,2]
[368218198,1751063453696,-151.0,0.00021342,2]
[368218199,1751063453705,-151.0,0.00021342,2]
[368218200,1751063453714,-151.0,0.00021342,2]
[368218201,1751063453724,-268.67247821,0.00021342,2]
[368218202,1751063453734,-151.0,0.00021342,2]
[368218203,1751063453743,-151.0,0.00021342,2]
[368218204,1751063453757,-151.0,0.00021342,2]
[368218205,1751063453768,-151.0,0.00021342,2]
[368218206,1751063453779,-151.0,0.00021342,2]
[368218207,1751063453789,-230.47988995,0.00021342,2]
[368218208,1751063453800,-151.0,0.00021342,2]
[368218209,1751063453809,-151.0,0.00021342,2]
[368218210,1751063453819,-151.0,0.00021342,2]
[368218211,1751063453830,-6095.93334336,0.00021348,5]
[368218212,1751063453839,-1500.0,0.00021364,2]
[368218213,1751063453849,-460.0,0.00021369,2]
[368218214,1751063453858,-151.0,0.00021369,2]
[368218215,1751063453867,-460.0,0.00021369,2]
[368218216,1751063453876,-151.0,0.00021369,2]
[368218217,1751063453886,-151.0,0.00021369,2]
[368218218,1751063453895,-151.0,0.00021369,2]
[368218219,1751063453905,-151.0,0.00021369,2]
[368218220,1751063453914,-607.35,0.00021369,2]
[368218221,1751063453923,-151.0,0.00021369,2]
[368218222,1751063453933,-460.0,0.00021369,2]
[368218223,1751063453943,-999.05,0.00021369,2]
[368218224,1751063453953,-460.0,0.00021369,2]
[368218225,1751063453963,-460.0,0.00021369,2]
[368218226,1751063453973,-460.0,0.00021369,2]
[368218227,1751063453983,-460.0,0.00021369,2]
[368218228,1751063453992,-900.26,0.00021369,2]
[368218229,1751063454002,-540.41,0.00021369,2]
[368218230,1751063454012,-460.0,0.00021369,2]
[368218231,1751063454022,-151.0,0.00021369,2]
[368218232,1751063454031,-151.0,0.00021369,2]
[368218233,1751063454040,-460.0,0.00021369,2]
[368218234,1751063454162,-151.0,0.00021369,2]
[368218235,1751063454172,-151.0,0.00021369,2]
[368218236,1751063454182,-460.0,0.00021369,2]
[368218237,1751063454192,-871.69,0.00021369,2]
[368218238,1751063454201,-503.7,0.00021369,2]
[368218239,1751063454211,-658.932233,0.00021369,2]
[368218240,1751063454221,-714.05,0.00021369,2]
[368218241,1751063454230,-658.932233,0.00021369,2]
[368218242,1751063454239,-868.19,0.00021369,2]
[368218243,1751063454249,-257.62014,0.00021369,2]
[368218244,1751063454259,-1111.27,0.00021369,2]
[368218245,1751063454268,-460.0,0.00021369,2]
[368218246,1751063454277,-653.02,0.00021369,2]
[368218247,1751063454286,-257.62014,0.00021369,2]
[368218248,1751063454296,-828.56,0.00021369,2]
[368218249,1751063454305,-627.83,0.00021369,2]
[368218250,1751063454315,-460.0,0.00021369,2]
[368218251,1751063454324,-1734.59,0.00021369,2]
[368218252,1751063454334,-674.57,0.00021369,2]
[368218253,1751063454344,-673.33,0.00021369,2]
[368218254,1751063454353,-3325.53,0.00021369,2]
[368218255,1751063454362,-2036.27,0.00021369,2]
[368218256,1751063454372,-3039.98,0.00021369,2]
[368218257,1751063454382,-746.56,0.00021369,2]
[368218258,1751063454391,-460.0,0.00021369,2]
[368218259,1751063454401,-3571.78,0.00021369,2]
[368218260,1751063454411,-711.12,0.00021369,2]
[368218261,1751063454421,-460.0,0.00021369,2]
[368218262,1751063454430,-542.69,0.00021369,2]
[368218263,1751063454440,-225.877884,0.00021369,2]
[368218264,1751063454449,-460.0,0.00021369,2]
[368218265,1751063454458,-746.6,0.00021369,2]
[368218266,1751063454468,-225.877884,0.00021369,2]
[368218267,1751063454477,-1211.5,0.00021369,2]
[368218268,1751063454487,-460.0,0.00021369,2]
[368218269,1751063454496,-1983.87,0.00021369,2]
[368218270,1751063454506,-2057.65,0.00021369,2]
[368218271,1751063454515,-592.7,0.00021369,2]
[368218272,1751063454525,-2270.27,0.00021369,2]
[368218273,1751063454536,-460.0,0.00021369,2]
[368218274,1751063454546,-984.99,0.00021369,2]
[368218275,1751063454556,-1354.55,0.00021369,2]
[368218276,1751063454566,-725.03,0.00021369,2]
[368218277,1751063454575,-859.5,0.00021369,2]
[368218278,1751063454585,-1500.41,0.00021369,2]
[368218279,1751063454595,-736.55,0.00021369,2]
[368218280,1751063454604,-735.38,0.00021369,2]
[368218281,1751063454614,-4367.09,0.00021369,2]
[368218282,1751063454624,-2800.66,0.00021369,2]
[368218283,1751063454634,-510.36,0.00021369,2]
[368218284,1751063454643,-557.48,0.00021369,2]
[368218285,1751063454653,-826.51,0.00021369,2]
[368218286,1751063454662,-679.09,0.00021369,2]
[368218287,1751063454671,-4896.92,0.00021369,2]
[368218288,1751063454680,-844.85,0.00021369,2]
[368218289,1751063454690,-3300.26,0.00021369,2]
[368218290,1751063454699,-1118.35,0.00021369,2]
[368218291,1751063454709,-1870.57,0.00021369,2]
[368218292,1751063454718,-1873.1,0.00021369,2]
[368218293,1751063454727,-460.0,0.00021369,2]
[368218294,1751063454737,-680.86,0.00021369,2]
[368218295,1751063454746,-4363.55,0.00021369,2]
[368218296,1751063454759,-1345.05,0.00021369,2]
[368218297,1751063454769,-3792.71,0.00021369,2]
[368218298,1751063454779,-629.7,0.00021369,2]
[368218299,1751063454787,-767.94,0.00021369,2]
[368218300,1751063454797,-151.0,0.00021369,2]
[368218301,1751063454806,-500.0,0.00021369,2]
[368218302,1751063454815,-151.0,0.00021369,2]
[368218303,1751063454826,-151.0,0.00021369,2]
[368218304,1751063454835,-317.0,0.00021374,2]
[368218305,1751063454845,-198.0,0.00021397,2]
[368218306,1751063454854,-214.96199244,0.00021397,2]
[368218307,1751063454863,-198.0,0.00021397,2]
[368218308,1751063454873,-151.0,0.00021397,2]
[368218309,1751063454883,-151.0,0.00021424,2]
[368218310,1751063454892,-1275.810033,0.00021444,4]
[368218311,1751063454901,-2161.0,0.00021445,2]
[368218312,1751063454911,-654.0,0.00021445,2]
[368218313,1751063454920,-413.555,0.00021445,2]
[368218314,1751063454929,-966.0,0.00021445,2]
[368218315,1751063454939,-151.0,0.00021452,2]
[368218316,1751063454948,-245.0,0.00021479,2]
[368218317,1751063454958,-215.0738,0.00021497,2]
[368218318,1751063454967,-741.01909549,0.00021543,2]
[368218319,1751063454976,-200.0,0.0002155,3]
[368218320,1751063454985,-587.0,0.00021572,2]
[368218321,1751063454995,-6095.93334336,0.0002159,5]
[368218322,1751063455003,-460.0,0.00021643,2]
[368218323,1751063455012,-151.0,0.00021643,2]
[368218324,1751063455021,-460.0,0.00021643,2]
[368218325,1751063455031,-607.35,0.00021643,2]
[368218326,1751063455040,-460.0,0.00021643,2]
[368218327,1751063455049,-999.05,0.00021643,2]
[368218328,1751063455058,-460.0,0.00021643,2]
[368218329,1751063455067,-201.01275662,0.00021643,2]
[368218330,1751063455076,-460.0,0.00021643,2]
[368218331,1751063455086,-460.0,0.00021643,2]
[368218332,1751063455095,-900.26,0.00021643,2]
[368218333,1751063455104,-151.0,0.00021643,2]
[368218334,1751063455114,-540.41,0.00021643,2]
[368218335,1751063455123,-460.0,0.00021643,2]
[368218336,1751063455132,-151.0,0.00021643,2]
[368218337,1751063455142,-293.963955,0.00021643,2]
[368218338,1751063455151,-1195.290389,0.00021643,2]
[368218339,1751063455160,-1195.290389,0.00021643,2]
[368218340,1751063455169,-460.0,0.00021643,2]
[368218341,1751063455178,-460.0,0.00021643,2]
[368218342,1751063455187,-871.69,0.00021643,2]
[368218343,1751063455196,-503.7,0.00021643,2]
[368218344,1751063455205,-714.05,0.00021643,2]
[368218345,1751063455214,-868.19,0.00021643,2]
[368218346,1751063455224,-1111.27,0.00021643,2]
[368218347,1751063455232,-177.09,0.00021643,2]
[368218348,1751063455242,-653.02,0.00021643,2]
[368218349,1751063455251,-828.56,0.00021643,2]
[368218350,1751063455260,-627.83,0.00021643,2]
[368218351,1751063455269,-460.0,0.00021643,2]
[368218352,1751063455279,-1090.66871844,0.00021643,2]
[368218353,1751063455449,-541.5756637,0.00021643,2]
[368218354,1751063455949,-954.9,0.00019178,2]
[368218355,1751063455959,-460.0,0.00019178,2]
[368218356,1751063455968,-1385.10000038,0.00019452,2]
[368218357,1751063455979,-2305.17999962,0.00019452,2]
[368218358,1751063455988,-954.9,0.00019452,2]
[368218359,1751063455997,-460.0,0.00019452,2]
[368218360,1751063456007,-3690.28,0.00019726,2]
[368218361,1751063456017,-954.9,0.00019726,2]
[368218362,1751063456026,-460.0,0.00019726,2]
[368218363,1751063456035,-3690.28,0.0002,2]
[368218364,1751063456045,-954.9,0.0002,2]
[368218365,1751063456055,-460.0,0.0002,2]
[368218366,1751063456064,-3690.28,0.00020273,2]
[368218367,1751063456073,-954.9,0.00020273,2]
[368218368,1751063456082,-382.04,0.00020273,2]
[368218369,1751063456092,-3690.28,0.00020547,2]
[368218370,1751063456101,-954.9,0.00020547,2]
[368218371,1751063456111,-3690.28,0.00020821,2]
[368218372,1751063456119,-954.9,0.00020821,2]
[368218373,1751063456129,-3690.28,0.00021095,2]
[368218374,1751063456138,-954.9,0.00021095,2]
[368218375,1751063456148,-3690.28,0.00021369,2]
[368218376,1751063456157,-954.9,0.00021369,2]
[368218377,1751063456166,-102.34561786,0.00021643,2]
[368218378,1751063456176,-674.57,0.00021643,2]
[368218379,1751063456186,-673.33,0.00021643,2]
[368218380,1751063456195,-3325.53,0.00021643,2]
[368218381,1751063456204,-2036.27,0.00021643,2]
[368218382,1751063456214,-3039.98,0.00021643,2]
[368218383,1751063456223,-746.56,0.00021643,2]
[368218384,1751063456232,-460.0,0.00021643,2]
[368218385,1751063456241,-3571.78,0.00021643,2]
[368218386,1751063456251,-711.12,0.00021643,2]
[368218387,1751063456260,-460.0,0.00021643,2]
[368218388,1751063456269,-542.69,0.00021643,2]
[368218389,1751063456278,-161.16572637,0.00021643,2]
[368218390,1751063456288,-746.6,0.00021643,2]
[368218391,1751063456298,-1211.5,0.00021643,2]
[368218392,1751063456307,-460.0,0.00021643,2]
[368218393,1751063456316,-1983.87,0.00021643,2]
[368218394,1751063456325,-2057.65,0.00021643,2]
[368218395,1751063456334,-592.7,0.00021643,2]
[368218396,1751063456343,-2270.27,0.00021643,2]
[368218397,1751063456353,-460.0,0.00021643,2]
[368218398,1751063456362,-984.99,0.00021643,2]
[368218399,1751063456371,-1354.55,0.00021643,2]
[368218400,1751063456380,-151.0,0.00021643,2]
[368218401,1751063456389,-725.03,0.00021643,2]
[368218402,1751063456398,-151.0,0.00021643,2]
[368218403,1751063456407,-859.5,0.00021643,2]
[368218404,1751063456417,-1500.41,0.00021643,2]
[368218405,1751063456426,-736.55,0.00021643,2]
[368218406,1751063456436,-735.38,0.00021643,2]
[368218407,1751063456446,-4367.09,0.00021643,2]
[368218408,1751063456455,-171.715867,0.00021643,2]
[368218409,1751063456464,-171.715867,0.00021643,2]
[368218410,1751063456474,-2800.66,0.00021643,2]
[368218411,1751063456607,-510.36,0.00021643,2]
[368218412,1751063456617,-557.48,0.00021643,2]
[368218413,1751063456638,-826.51,0.00021643,2]
[368218414,1751063456648,-679.09,0.00021643,2]
[368218415,1751063456658,-4896.92,0.00021643,2]
[368218416,1751063456668,-844.85,0.00021643,2]
[368218417,1751063456678,-151.0,0.00021643,2]
[368218418,1751063456688,-3300.26,0.00021643,2]
[368218419,1751063456699,-1118.35,0.00021643,2]
[368218420,1751063456709,-1870.57,0.00021643,2]
[368218421,1751063456719,-392.968075,0.00021643,2]
[368218422,1751063456729,-392.968075,0.00021643,2]
[368218423,1751063456739,-1873.1,0.00021643,2]
[368218424,1751063456749,-460.0,0.00021643,2]
[368218425,1751063456763,-680.86,0.00021643,2]
[368218426,1751063456773,-4363.55,0.00021643,2]
[368218427,1751063456784,-151.0,0.00021643,2]
[368218428,1751063456794,-1345.05,0.00021643,2]
[368218429,1751063456804,-3792.71,0.00021643,2]
[368218430,1751063456814,-629.7,0.00021643,2]
[368218431,1751063456824,-767.94,0.00021643,2]
[368218432,1751063456834,-3690.28,0.00021643,2]
[368218433,1751063456845,-954.9,0.00021643,2]
[368218434,1751063456855,-640.0,0.000217,2]
[368218435,1751063456865,-957.13678882,0.00021817,2]
[368218436,1751063456880,-5092.12340333,0.00021817,2]
[368218437,1751063456890,-151.0,0.00021831,2]
[368218438,1751063456900,-151.0,0.00021831,2]
[368218439,1751063456910,-212.222409,0.00021831,2]
[368218440,1751063456919,-212.222409,0.00021831,2]
[368218441,1751063456929,-151.0,0.00021831,2]
[368218442,1751063456939,-151.0,0.00021831,2]
[368218443,1751063456950,-6095.93334336,0.00021831,6]
[368218444,1751063456959,-1817.33681595,0.00021864,2]
[368218445,1751063456971,-790.0325986,0.00021864,2]
[368218446,1751063456987,-8413.59340488,0.00021864,2]
[368218447,1751063456998,-1479.03718057,0.00021864,2]
[368218448,1751063457008,-5449.98108917,0.00021873,2]
[368218449,1751063457153,-460.0,0.00019178,2]
[368218450,1751063457163,-296.58704136,0.00019178,2]
[368218451,1751063457172,-48.47295864,0.00020545,2]
[368218452,1751063457184,-112.62941036,0.00020545,2]
[368218453,1751063457194,-1000.0,0.000213,2]
[368218454,1751063457203,-1000.0,0.000218,2]
[368218455,1751063457213,-913.96258107,0.00021873,2]
[368218456,1751063457224,-3412.33,0.00021873,2]
[368218457,1751063457236,-2723.72632976,0.00021873,2]
[368218458,1751063457246,-1347.35301632,0.0002188,5]
[368218459,1751063457261,-1048.79303016,0.0002188,5]
[368218460,1751063457293,-7423.92454442,0.0002188,5]
[368218461,1751063457305,-18196.67892716,0.0002188,5]
[368218462,1751063457316,-13832.89636971,0.0002188,5]
[368218465,1751063912022,456.117806,0.00013699,2]
[368218467,1751064345090,-164.91663401,0.00019068,2]
[368218468,1751064345110,-164.91663401,0.00019077,2]
[368218469,1751064345130,-160.0,0.00019158,2]
[368218470,1751064345150,-160.0,0.00019159,2]
[368218471,1751064345171,-353.58062219,0.00019168,3]
[368218472,1751064358158,-526.33348247,0.00019078,2]
[368218473,1751064358179,-181.73937781,0.00019168,3]
[368218474,1751064358199,-267.66,0.00019168,3]
[368218475,1751064358220,-298.98550025,0.00019168,3]
[368218479,1751064443096,-300.0,0.00018175,2]
[368218480,1751064443117,-288.9765351,0.00018176,2]
[368218481,1751064443139,-1323.4193913,0.00018177,2]
[368218515,1751064632014,-300.0,0.00018175,2]
[368218516,1751064632023,-184.39370021,0.00018175,2]
[368218517,1751064632036,-115.60629979,0.00018175,2]
[368218518,1751064632046,-1200.0,0.00018175,2]
[368218519,1751064632055,-1703.96770097,0.00018177,2]
[368218584,1751064638053,-21872.61290773,0.00018177,2]
[368218586,1751064638063,-402.47363518,0.000189,2]
[368218588,1751064638074,-504.01449975,0.00019168,3]
[368218590,1751064638083,-411.31885303,0.00019176,2]
[368218593,1751064638094,-619.0,0.00019176,2]
[368218595,1751064638106,-5443.60142602,0.00019177,2]
[368218597,1751064638115,-346.38451159,0.00019177,2]
[368218599,1751064638124,-180.22736432,0.00019177,2]
[368218601,1751064638134,-500.0,0.00019177,2]
[368218602,1751064638144,-500.0,0.00019177,2]
[368218604,1751064638154,-315.22871366,0.00019177,2]
[368218607,1751064638164,-500.0,0.00019177,2]
[368218609,1751064638173,-500.0,0.00019177,2]
[368218627,1751064638353,-500.0,0.00019177,2]
[368218629,1751064638363,-282.69520564,0.00019177,2]
[368218631,1751064638373,-500.0,0.00019177,2]
[368218632,1751064638383,-500.0,0.00019177,2]
[368218634,1751064638392,-500.0,0.00019177,2]
[368218636,1751064638403,-403.18258233,0.00019177,2]
[368218638,1751064638412,-413.24428784,0.00019177,2]
[368218640,1751064638421,-500.0,0.00019177,2]
[368218641,1751064638430,-500.0,0.00019177,2]
[368218643,1751064638439,-487.68823842,0.00019177,2]
[368218645,1751064638448,-500.0,0.00019177,2]
[368218646,1751064638458,-500.0,0.00019177,2]
[368218648,1751064638468,-500.0,0.00019177,2]
[368218649,1751064638477,-597.62409488,0.00019177,2]
[368218650,1751064638486,-500.0,0.00019177,2]